bitfinex-derivatives/quotes_SOLF0:USTF0_20240920
["timestamp","ask_amount","ask_price","bid_price","bid_amount"]
[1726839663013,25.98,147.54,147.4,25.98]
[1726839663315,25.98,147.51,147.38,2.6666]
[1726839663515,1.28,147.5,147.38,2.6666]
[1726839664110,1.28,147.5,147.4,25.98]
[1726839664415,3.3908,147.45,147.4,25.98]
[1726839664611,1.28,147.5,147.4,25.98]
[1726839664815,1.28,147.5,147.41,1.3788]
[1726839666720,25.98,147.48,147.38,2.6666]
[1726839666920,1.28,147.5,147.38,28.6466]
[1726839667619,3.3908,147.45,147.38,28.6466]
[1726839667818,1.28,147.5,147.38,28.6466]
[1726839668017,3.3912,147.43,147.38,2.6666]
[1726839668214,16.28,147.44,147.38,2.6666]
[1726839668424,16.28,147.42,147.38,2.6666]
[1726839669020,16.28,147.44,147.38,2.6666]
[1726839669610,16.28,147.46,147.38,18.9466]
[1726839670116,26.06,147.47,147.38,2.6666]
[1726839670319,3.3913,147.43,147.38,2.6666]
[1726839670510,26.06,147.47,147.38,2.6666]
[1726839670716,26.06,147.44,147.38,2.6666]
[1726839670919,3.3921,147.39,147.38,2.6666]
[1726839671116,3.3921,147.39,147.38,1.3145]
[1726839671317,26.06,147.44,147.34,1.403]
[1726839671721,26.06,147.42,147.34,1.403]
[1726839672817,26.06,147.42,147.22,86.6131916]
[1726839672818,26.06,147.37,147.23,135.7]
[1726839673018,26.06,147.37,147.27,6.0858]
[1726839673019,3.3937,147.33,147.27,6.0858]
[1726839673220,26.06,147.37,147.27,2.6909]
[1726839673419,26.06,147.36,147.27,2.6909]
[1726839674215,3.3936,147.33,147.27,2.6909]
[1726839674417,1.4129,147.39,147.23,135.7]
[1726839674613,1.4129,147.39,147.24,26.06]
[1726839674614,26.06,147.36,147.24,26.06]
[1726839674814,26.06,147.38,147.26,26.06]
[1726839675023,1.4129,147.39,147.26,26.06]
[1726839675523,26.06,147.42,147.31,26.06]
[1726839675725,26.06,147.45,147.32,2.7857]
[1726839675924,26.06,147.45,147.34,26.06]
[1726839676618,3.3919,147.41,147.36,3.3927]
[1726839676928,1.4129,147.46,147.34,26.06]
[1726839677122,3.3912,147.44,147.39,3.3919]
[1726839677424,26.06,147.49,147.4,2.7631]
[1726839678021,26.06,147.47,147.35,135.74]
[1726839678223,3.3917,147.42,147.36,4.7961]
[1726839678523,26.06,147.47,147.36,1.4035]
[1726839678923,3.3919,147.41,147.36,1.4035]
[1726839679130,1.3066,147.52,147.36,1.4035]
[1726839679327,26.06,147.45,147.36,1.4035]
[1726839679725,26.06,147.45,147.36,4.7963]
[1726839679924,26.06,147.48,147.36,1.4035]
[1726839680826,3.3916,147.42,147.36,4.7961]
[1726839681024,3.3916,147.42,147.36,1.4035]
[1726839681622,3.3916,147.42,147.37,3.3925]
[1726839681824,3.3916,147.42,147.36,1.4035]
[1726839682123,26.06,147.48,147.36,1.4035]
[1726839682531,26.06,147.48,147.38,3.3923]
[1726839682727,26.06,147.48,147.36,1.4035]
[1726839683025,26.06,147.45,147.36,1.4035]
[1726839683222,26.06,147.45,147.36,4.7962]
[1726839683423,26.06,147.47,147.36,1.4035]
[1726839684031,26.06,147.45,147.36,1.4035]
[1726839684229,26.06,147.45,147.36,4.7962]
[1726839684430,26.06,147.45,147.36,1.4035]
[1726839685132,3.4643051,147.51,147.32,161.78]
[1726839685133,33.9632051,147.51,147.32,135.72]
[1726839685327,26.06,147.4,147.32,135.72]
[1726839685924,26.06,147.42,147.32,135.72]
[1726839686126,26.06,147.4,147.33,1.3136]
[1726839686335,26.06,147.4,147.32,135.72]
[1726839686523,26.06,147.38,147.32,135.72]
[1726839686833,3.3935,147.33,147.32,135.72]
[1726839687029,26.06,147.38,147.32,135.72]
[1726839687334,3.3932,147.35,147.32,135.72]
[1726839687631,26.06,147.38,147.32,135.72]
[1726839688134,26.06,147.4,147.32,135.72]
[1726839688933,3.3932,147.35,147.32,135.72]
[1726839689335,26.06,147.39,147.29,3.3943]
[1726839690133,3.3934,147.34,147.29,3.3943]
[1726839690536,3.3938,147.32,147.27,26.06]
[1726839690733,3.43438115,147.34,147.21,3.39873718]
[1726839690934,26.06,147.3,147.18,3.3968]
[1726839691134,3.3959,147.23,147.18,3.3968]
[1726839691342,26.06,147.24,147.06,8.77668674]
[1726839691640,26.06,147.27,147.14,26.06]
[1726839691839,26.06,147.27,147.15,3.47396973]
[1726839692132,26.06,147.27,147.13,27.4453]
[1726839692337,26.06,147.24,147.13,1.3853]
[1726839692544,26.06,147.24,147.13,8.23213295]
[1726839692837,3.3969,147.19,147.13,4.7833]
[1726839693029,26.06,147.27,147.13,30.82347825]
[1726839693232,3.396,147.23,147.13,30.82347825]
[1726839693428,26.06,147.28,147.16,26.06]
[1726839693632,26.06,147.28,147.17,1.3258]
[1726839694234,3.3955,147.25,147.17,1.3258]
[1726839694439,26.06,147.28,147.13,4.76347825]
[1726839694636,26.06,147.26,147.16,3.3973]
[1726839694839,26.06,147.26,147.14,1.3966]
[1726839695040,26.06,147.24,147.14,1.3966]
[1726839695432,49.84134007,147.33,147.14,1.3966]
[1726839695433,26.06,147.26,147.14,1.3966]
[1726839695636,26.06,147.26,147.17,3.3971]
[1726839696041,26.06,147.26,147.14,4.7943]
[1726839696241,26.06,147.26,147.14,1.3966]
[1726839696445,3.3962,147.22,147.14,1.3966]
[1726839696946,3.396,147.23,147.14,1.3966]
[1726839697147,26.06,147.26,147.14,1.3966]
[1726839697546,26.06,147.26,147.18,3.3969]
[1726839697848,26.06,147.26,147.14,1.3966]
[1726839698245,26.06,147.26,147.16,3.3974]
[1726839698451,26.06,147.26,147.14,1.3966]
[1726839698651,3.3965,147.21,147.14,1.3966]
[1726839698951,3.3965,147.21,147.16,3.3973]
[1726839699142,3.3961,147.22,147.14,1.3966]
[1726839699342,26.06,147.26,147.14,1.3966]
[1726839699755,3.3962,147.22,147.14,1.3966]
[1726839699946,3.3962,147.22,147.17,3.3971]
[1726839700148,26.06,147.24,147.14,1.3966]
[1726839700852,26.06,147.26,147.13,135.86]
[1726839700853,3.3979,147.14,147.13,135.86]
[1726839701157,26.06,147.19,147.11,3.47232809]
[1726839701352,26.06,147.16,147.07,2.7462]
[1726839702249,3.3981,147.14,147.07,2.7462]
[1726839702445,26.06,147.19,147.07,2.7462]
[1726839702657,26.06,147.19,147.11,3.3986]
[1726839702848,3.3976,147.16,147.11,3.35033105]
[1726839703051,26.06,147.19,147.07,2.7462]
[1726839703448,3.3981,147.14,147.07,2.7462]
[1726839703652,26.06,147.19,147.07,2.7462]
[1726839703954,26.06,147.21,147.07,2.7462]
[1726839704253,26.06,147.21,147.1,3.3988]
[1726839704453,26.06,147.21,147.1,3.40618552]
[1726839704657,26.06,147.21,147.07,2.7462]
[1726839705155,1.0,147.23,147.08,3.32019819]
[1726839705156,26.06,147.16,147.08,3.32019819]
[1726839705355,26.06,147.16,147.06,8.77668674]
[1726839705756,26.06,147.16,147.09,3.3989]
[1726839706060,26.06,147.16,147.08,3.33141393]
[1726839706249,26.06,147.16,147.06,8.77668674]
[1726839706448,3.398,147.14,147.08,3.3991]
[1726839706756,26.06,147.16,147.09,3.36336179]
[1726839706957,26.06,147.16,147.06,8.77668674]
[1726839707757,3.3982,147.13,147.06,8.77668674]
[1726839707957,26.06,147.16,147.06,8.77668674]
[1726839708254,3.3985,147.12,147.07,3.3994]
[1726839708556,26.06,147.16,147.06,8.77668674]
[1726839708764,29.47119155,147.18,147.06,8.77668674]
[1726839708958,26.06,147.14,147.06,8.77668674]
[1726839709355,3.3994,147.08,147.06,8.77668674]
[1726839709553,26.06,147.14,147.06,8.77668674]
[1726839709752,26.06,147.11,147.06,8.77668674]
[1726839709956,3.3995,147.07,147.06,8.77668674]
[1726839710151,3.3995,147.07,147.06,8.69398674]
[1726839710352,26.06,147.07,146.95,2.7283]
[1726839710554,26.06,147.04,146.95,6.09971585]
[1726839710758,26.06,147.09,146.96,26.06]
[1726839710958,3.4005,147.03,146.97,4.7671]
[1726839711159,26.06,147.09,146.97,27.4254]
[1726839711357,26.06,147.12,146.97,27.4254]
[1726839711561,3.3999,147.06,147.0,3.4009]
[1726839711761,26.06,147.12,146.97,27.4254]
[1726839711960,26.06,147.09,146.97,30.8271]
[1726839712160,26.06,147.09,146.97,1.3654]
[1726839712459,3.4003,147.04,146.99,3.4014]
[1726839712764,3.4003,147.04,146.97,1.3654]
[1726839713063,3.4002,147.04,146.99,3.4011]
[1726839713268,3.4002,147.04,146.97,1.3654]
[1726839713562,3.4003,147.04,146.99,3.4013]
[1726839713763,26.06,147.09,146.99,3.4013]
[1726839714562,26.06,147.09,147.0,3.4011]
[1726839714762,26.06,147.09,146.97,1.3654]
[1726839714970,26.06,147.09,146.97,27.4254]
[1726839715157,3.4011,147.01,146.97,1.3654]
[1726839715362,26.06,147.07,146.97,1.3654]
[1726839715669,26.06,147.11,146.92,26.06]
[1726839715670,26.06,147.02,146.92,3.4029]
[1726839715865,26.06,147.04,146.92,3.3866264]
[1726839716066,26.06,146.99,146.87,1.2825]
[1726839716367,26.06,146.99,146.87,4.73477056]
[1726839716562,26.06,147.02,146.88,26.06]
[1726839716761,3.402,146.97,146.92,3.4028]
[1726839716963,26.06,147.02,146.88,26.06]
[1726839717366,3.4023,146.96,146.87,4.73613106]
[1726839717670,26.06,147.0,146.92,3.4029]
[1726839717971,26.06,147.02,146.92,3.4029]
[1726839718173,23.74043516,147.1,146.89,26.06]
[1726839718373,26.06,147.02,146.89,26.06]
[1726839719873,3.4021,146.96,146.87,30.79613106]
[1726839720172,26.06,147.02,146.87,30.79613106]
[1726839720873,26.06,147.02,146.9,3.4033]
[1726839721072,3.4025,146.95,146.9,3.4033]
[1726839721371,6.8,147.06,146.9,3.4034]
[1726839721673,26.06,146.99,146.87,30.79613106]
[1726839721873,26.06,147.01,146.93,3.4028]
[1726839722269,26.06,147.01,146.89,26.06]
[1726839722471,26.06,147.06,146.92,26.06]
[1726839722770,136.08,147.2,146.95,26.06]
[1726839723075,26.06,147.09,146.97,26.06]
[1726839723279,3.4002,147.05,146.97,26.06]
[1726839723574,26.06,147.09,146.97,26.06]
[1726839723775,6.7956,147.15,146.99,26.06]
[1726839723977,26.06,147.12,147.02,3.4005]
[1726839724177,26.06,147.12,147.0,1.3479]
[1726839724378,3.3999,147.06,147.0,1.3479]
[1726839724576,26.06,147.12,147.0,1.3479]
[1726839724979,6.777,147.8,147.0,1.3479]
[1726839724980,26.06,147.17,147.04,26.06]
[1726839725277,26.06,147.17,147.05,1.4143]
[1726839725875,136.08,147.3,147.07,26.06]
[1726839726072,26.06,147.25,147.12,26.06]
[1726839726776,26.06,147.25,147.12,29.47077529]
[1726839727579,3.3961,147.22,147.12,29.47077529]
[1726839727777,26.06,147.25,147.12,29.47077529]
[1726839727973,26.06,147.27,147.12,3.41077529]
[1726839728171,26.06,147.27,147.14,26.06]
[1726839728575,26.06,147.25,147.14,26.06]
[1726839728780,26.06,147.22,147.09,28.7034]
[1726839729086,26.06,147.2,147.09,28.7034]
[1726839729384,3.3974,147.17,147.09,28.7034]
[1726839729578,26.06,147.22,147.09,32.11500878]
[1726839729974,26.06,147.24,147.12,26.06]
[1726839731784,3.3967,147.2,147.13,3.398]
[1726839732176,26.06,147.24,147.13,3.398]
[1726839732379,26.06,147.22,147.11,136.02]
[1726839733079,32.8473,147.33,147.11,136.02]
[1726839733080,3.46020526,147.31,147.11,136.02]
[1726839733285,26.06,147.26,147.14,26.06]
[1726839733492,3.3967,147.2,147.14,29.4579]
[1726839733685,26.06,147.24,147.14,26.06]
[1726839733881,26.06,147.24,147.12,26.06]
[1726839734083,26.06,147.24,147.13,3.398]
[1726839734287,26.06,147.21,147.11,136.02]
[1726839734785,26.06,147.19,147.11,136.02]
[1726839734986,3.3976,147.16,147.11,136.02]
[1726839735186,26.06,147.19,147.11,136.02]
[1726839735387,26.06,147.19,147.09,6.05500878]
[1726839735585,3.3977,147.15,147.09,6.05500878]
[1726839735780,26.06,147.19,147.09,6.05500878]
[1726839736087,26.06,147.21,147.09,32.11500878]
[1726839736486,26.06,147.21,147.09,27.385]
[1726839736685,26.06,147.18,147.09,1.325]
[1726839736888,26.06,147.18,147.07,135.98]
[1726839737082,26.06,147.13,147.05,1.4143]
[1726839737286,26.06,147.13,147.01,26.06]
[1726839737585,26.06,147.13,147.02,3.4005]
[1726839738487,26.06,147.13,147.03,3.4004]
[1726839739189,26.06,147.13,147.04,3.4002]
[1726839739387,3.3991,147.09,147.04,3.4002]
[1726839739785,3.3988,147.11,147.05,3.4]
[1726839740088,3.3988,147.11,147.0,140.0529]
[1726839740089,26.06,147.15,147.03,26.06]
[1726839740287,26.06,147.15,147.05,3.3998]
[1726839740589,3.3987,147.11,147.03,26.06]
[1726839740783,3.3987,147.11,147.06,3.3996]
[1726839740990,26.06,147.17,147.06,26.06]
[1726839742280,26.06,147.22,147.11,26.06]
[1726839742480,26.06,147.22,147.11,29.43199306]
[1726839742891,3.397,147.18,147.13,3.398]
[1726839743085,3.397,147.18,147.11,29.43199306]
[1726839743086,26.06,147.22,147.11,26.06]
[1726839743485,10.15182491,147.28,147.08,26.06]
[1726839743486,26.06,147.2,147.08,26.06]
[1726839743687,26.06,147.22,147.11,26.06]
[1726839743888,3.397,147.18,147.13,3.398]
[1726839744293,26.06,147.22,147.11,26.06]
[1726839744490,3.3974,147.17,147.12,3.3983]
[1726839744692,26.06,147.22,147.11,29.52895757]
[1726839745293,3.3976,147.16,147.11,32.92745757]
[1726839745500,6.7907,147.26,147.11,26.06]
[1726839745695,26.06,147.22,147.11,26.06]
[1726839745899,32.8507,147.26,147.11,29.4584]
[1726839746104,26.06,147.22,147.11,32.77372551]
[1726839746503,26.06,147.22,147.11,26.06]
[1726839747693,10.1863,147.25,147.07,135.98]
[1726839747904,26.06,147.13,147.04,1.3004]
[1726839748597,1.0,147.21,147.04,1.3004]
[1726839748796,26.06,147.18,147.04,1.3004]
[1726839749198,26.06,147.18,147.06,3.3995]
[1726839749404,26.06,147.15,147.05,3.43837106]
[1726839749604,26.06,147.15,147.04,1.3004]
[1726839750903,3.3992,147.09,147.04,4.7005]
[1726839751204,26.06,147.1,147.0,2.7662]
[1726839751902,3.4008,147.02,147.0,1.3919]
[1726839752094,26.06,147.1,147.0,1.3919]
[1726839752612,3.4004,147.04,147.0,1.3919]
[1726839752804,26.06,147.05,146.84,136.02]
[1726839752998,26.06,147.05,146.93,27.4392]
[1726839753203,3.4012,147.0,146.94,3.33447457]
[1726839753506,26.06,147.07,146.96,26.06]
[1726839753799,1.0,147.09,146.96,26.06]
[1726839754209,26.06,147.1,146.97,6.75625152]
[1726839754412,6.7955,147.15,146.97,6.75625152]
[1726839754413,26.06,147.08,146.97,3.35455152]
[1726839754807,26.06,147.08,146.96,26.06]
[1726839755107,26.06,147.08,146.96,29.51867941]
[1726839755308,26.06,147.1,146.98,26.06]
[1726839755707,3.3996,147.07,146.98,29.51085281]
[1726839755900,56.6173,147.26,147.0,26.06]
[1726839755901,26.06,147.13,147.0,26.06]
[1726839756101,26.06,147.13,147.01,2.7378]
[1726839756509,26.06,147.13,147.02,1.4009]
[1726839756707,26.06,147.13,147.02,4.86609531]
[1726839757107,166.54,147.2,147.02,1.4009]
[1726839757108,26.06,147.1,147.02,1.4009]
[1726839757314,3.401,147.01,146.98,3.38730665]
[1726839757514,26.06,147.08,146.98,3.38730665]
[1726839757705,26.06,147.08,146.96,2.7146]
[1726839757911,26.06,147.08,146.96,4.0525]
[1726839758210,26.06,147.08,146.96,7.40375338]
[1726839758910,26.06,147.08,146.98,26.06]
[1726839759610,26.06,147.1,146.98,26.06]
[1726839759813,3.3998,147.06,146.98,26.06]
[1726839760116,26.06,147.1,146.98,26.06]
[1726839760315,3.3999,147.06,146.98,26.06]
[1726839760504,26.06,147.1,146.98,26.06]
[1726839760905,26.06,147.1,147.01,3.4008]
[1726839761408,26.06,147.1,146.98,26.06]
[1726839761613,26.06,147.15,147.03,26.06]
[1726839761816,26.06,147.15,147.04,2.741]
[1726839762113,26.06,147.15,147.04,4.1334]
[1726839762312,26.06,147.1,146.96,3.35125338]
[1726839762515,3.4004,147.04,146.98,26.06]
[1726839762715,26.06,147.1,146.98,32.81342154]
[1726839763113,26.06,147.1,146.99,3.4013]
[1726839763417,26.06,147.1,146.98,29.41182154]
[1726839764113,3.4001,147.05,146.98,29.41182154]
[1726839764318,26.06,147.1,146.99,3.4013]
[1726839764712,26.06,147.07,146.97,1.4087]
[1726839764908,26.06,147.05,146.97,1.4087]
[1726839765116,26.06,147.05,146.94,1.3538]
[1726839765313,3.402,146.97,146.94,1.3538]
[1726839766315,26.06,147.05,146.94,1.3538]
[1726839766818,26.06,147.05,146.95,3.37179538]
[1726839767019,26.06,147.05,146.94,1.3538]
[1726839767625,3.4013,147.0,146.95,3.37213569]
[1726839767916,26.06,147.05,146.95,3.37213569]
[1726839768619,26.06,147.1,146.92,136.06]
[1726839768620,26.06,147.02,146.92,136.06]
[1726839768820,20.33,147.12,146.94,26.06]
[1726839769019,26.06,147.05,146.95,6.77647755]
[1726839769222,26.06,147.05,146.95,3.37417755]
[1726839769818,3.4015,146.99,146.95,3.37417755]
[1726839770025,26.06,147.05,146.93,1.3177]
[1726839770523,3.4018,146.97,146.93,1.3177]
[1726839770925,3.4017,146.98,146.93,4.7204]
[1726839772322,3.4017,146.98,146.93,1.3177]
[1726839772921,3.402,146.97,146.93,4.7203]
[1726839773514,26.06,147.05,146.94,3.4025]
[1726839773714,26.06,147.05,146.95,3.3462721]
[1726839773917,26.06,147.03,146.93,4.7204]
[1726839774113,3.402,146.97,146.93,1.3177]
[1726839774316,26.06,147.03,146.93,1.3177]
[1726839774516,3.4016,146.98,146.94,3.4024]
[1726839774719,3.4016,146.98,146.95,3.44904584]
[1726839775823,1.0,147.11,146.96,26.06]
[1726839776020,1.0,147.11,146.97,2.7198]
[1726839776021,26.06,147.09,146.97,2.7198]
[1726839776727,26.06,147.07,146.97,2.7198]
[1726839776922,32.8584,147.09,146.97,2.7198]
[1726839777126,26.06,147.05,146.97,2.7198]
[1726839777324,3.4001,147.05,146.97,2.7198]
[1726839777521,26.06,147.12,146.98,26.06]
[1726839777726,3.34773976,147.18,147.01,26.06]
[1726839777919,26.06,147.13,147.03,3.4003]
[1726839778126,26.06,147.16,147.03,26.06]
[1726839778330,26.06,147.16,147.04,1.3886]
[1726839778527,26.06,147.16,147.04,4.84917018]
[1726839778728,26.06,147.16,147.05,1.3215]
[1726839779031,26.06,147.16,147.05,27.3815]
[1726839779231,26.06,147.18,147.05,27.3815]
[1726839779932,26.06,147.15,147.05,1.3215]
[1726839780137,26.06,147.06,146.74,2.95024609]
[1726839780335,26.06,147.18,146.97,2.6475]
[1726839780525,26.06,147.11,146.97,2.6475]
[1726839780828,162.16,147.26,146.97,2.6475]
[1726839780829,1.0,147.17,147.03,26.06]
[1726839781031,1.0,147.17,147.05,26.06]
[1726839781229,26.06,147.18,147.06,2.6952]
[1726839781433,26.06,147.18,147.06,4.0212]
[1726839781733,3.3979,147.15,147.07,3.3995]
[1726839781925,26.06,147.2,147.07,26.06]
[1726839782328,26.06,147.18,147.06,7.4046433]
[1726839782931,26.06,147.15,147.06,4.0212]
[1726839783235,26.06,147.13,147.06,4.0212]
[1726839783434,3.399,147.1,147.06,4.0212]
[1726839783833,26.06,147.13,147.06,2.6231]
[1726839784032,26.06,147.13,147.06,1.326]
[1726839784828,3.3992,147.09,147.06,1.326]
[1726839785032,26.06,147.18,147.01,4.014]
[1726839785531,3.3998,147.06,147.01,4.014]
[1726839785732,26.06,147.11,147.01,1.3853]
[1726839785933,3.4002,147.05,146.98,136.04]
[1726839786136,26.06,147.06,146.99,3.4585034]
[1726839786427,3.3997,147.07,146.99,3.4013]
[1726839786637,3.3997,147.07,146.99,4.7221]
[1726839787636,3.3998,147.06,146.99,4.7221]
[1726839788639,20.33,147.3,147.03,26.06]
[1726839788842,26.06,147.17,147.04,1.3883]
[1726839789136,26.06,147.14,147.04,1.3883]
[1726839789336,26.06,147.17,147.04,1.3883]
[1726839789539,26.06,147.12,147.04,1.3883]
[1726839789936,3.3992,147.09,147.04,1.3883]
[1726839790736,3.3994,147.08,147.04,1.3883]
[1726839790930,26.06,147.15,147.04,1.3883]
[1726839791338,3.399,147.1,147.04,1.3883]
[1726839791740,26.06,147.15,147.04,1.3883]
[1726839791935,1.4092,147.14,147.04,1.3883]
[1726839792336,26.06,147.12,147.04,1.3883]
[1726839793842,3.3995,147.08,147.04,1.3883]
[1726839794145,27.4692,147.14,147.04,1.3883]
[1726839794341,3.3986,147.11,147.04,1.3883]
[1726839794543,27.4692,147.14,147.04,1.3883]
[1726839796246,3.3996,147.07,147.04,1.3883]
[1726839796546,27.4692,147.14,147.04,1.3883]
[1726839796743,3.3995,147.07,147.04,1.3883]
[1726839796947,1.4092,147.14,147.02,136.04]
[1726839797146,26.06,147.1,147.02,136.04]
[1726839798351,3.4004,147.03,147.02,136.04]
[1726839798548,26.06,147.1,147.02,136.04]
[1726839799857,3.3998,147.06,147.02,136.04]
[1726839800047,1.4092,147.14,147.02,136.04]
[1726839800048,26.06,147.12,147.02,136.04]
[1726839800649,26.06,147.12,147.01,3.4007]
[1726839801054,3.3997,147.07,147.01,3.4007]
[1726839801249,26.06,147.12,147.0,27.467]
[1726839801455,27.4692,147.14,147.03,26.06]
[1726839801655,3.3995,147.08,147.03,26.06]
[1726839801851,3.3995,147.08,147.04,1.3332]
[1726839803457,27.4692,147.14,147.04,1.3332]
[1726839803951,3.3995,147.08,147.04,1.3332]
[1726839804347,27.4692,147.14,147.04,1.3332]
[1726839805250,1.4092,147.14,147.05,26.06]
[1726839805753,26.06,147.21,147.08,26.06]
[1726839805960,1.3625,147.2,147.09,1.2845]
[1726839806152,1.3625,147.2,147.09,4.6834]
[1726839806153,3.3978,147.15,147.09,4.6834]
[1726839806353,1.3625,147.2,147.09,1.2845]
[1726839806749,1.3625,147.2,147.1,3.3987]
[1726839807158,3.3983,147.13,147.09,4.69071599]
[1726839807354,1.3625,147.2,147.09,4.69071599]
[1726839808459,1.0,147.27,147.09,4.69071599]
[1726839808761,27.4246,147.26,147.14,3.3978]
[1726839808964,27.4246,147.26,147.14,4.7428]
[1726839809267,27.4246,147.26,147.14,1.345]
[1726839809859,3.3968,147.19,147.14,1.345]
[1726839810358,27.4246,147.26,147.14,4.7429]
[1726839810762,26.06,147.26,147.16,26.06]
[1726839810966,3.3963,147.21,147.16,26.06]
[1726839811266,27.3877,147.26,147.17,3.46634265]
[1726839811560,27.3877,147.26,147.14,2.7173]
[1726839811561,3.3969,147.19,147.14,2.7173]
[1726839811864,27.3877,147.26,147.14,2.7173]
[1726839812859,27.3877,147.26,147.15,3.3975]
[1726839813067,3.3964,147.21,147.14,2.7173]
[1726839813362,1.3277,147.26,147.16,29.4574]
[1726839814666,27.3877,147.26,147.16,26.06]
[1726839815362,27.3877,147.26,147.14,2.7173]
[1726839815569,3.3969,147.19,147.14,2.7173]
[1726839815767,27.3877,147.26,147.14,2.7173]
[1726839815968,26.06,147.23,147.14,1.345]
[1726839817273,3.3974,147.17,147.14,1.345]
[1726839817467,3.3974,147.17,147.13,135.98]
[1726839817468,26.06,147.21,147.13,135.98]
[1726839817770,26.06,147.21,147.1,6.031]
[1726839818269,3.398,147.14,147.1,2.6323]
[1726839818663,26.06,147.21,147.1,2.6323]
[1726839819471,26.06,147.23,147.11,26.06]
[1726839819668,26.06,147.25,147.13,26.06]
[1726839820372,1.3277,147.26,147.16,26.06]
[1726839821070,26.06,147.25,147.13,26.06]
[1726839821469,3.397,147.19,147.13,26.06]
[1726839821665,1.3277,147.26,147.13,26.06]
[1726839821873,1.3277,147.26,147.16,26.06]
[1726839822071,3.3964,147.21,147.16,29.4573]
[1726839822268,26.06,147.25,147.17,3.44263517]
[1726839822469,26.06,147.25,147.14,135.94]
[1726839822664,26.06,147.23,147.14,135.94]
[1726839822971,26.06,147.21,147.14,135.94]
[1726839823467,3.3977,147.16,147.14,135.94]
[1726839823862,26.06,147.21,147.14,135.94]
[1726839824673,3.3974,147.17,147.14,135.94]
[1726839824878,26.06,147.23,147.14,135.94]
[1726839825170,1.3277,147.26,147.14,135.94]
[1726839825171,26.06,147.25,147.14,135.94]
[1726839825769,1.3277,147.26,147.14,135.94]
[1726839826374,3.3971,147.18,147.14,135.94]
[1726839826567,26.06,147.25,147.14,135.94]
[1726839826773,26.06,147.23,147.14,135.94]
[1726839827173,26.06,147.23,147.11,26.06]
[1726839827675,26.06,147.25,147.11,26.06]
[1726839828274,26.06,147.25,147.14,26.06]
[1726839828474,3.3967,147.2,147.15,3.3975]
[1726839828772,26.06,147.25,147.14,26.06]
[1726839828962,3.397,147.18,147.14,26.06]
[1726839829167,26.06,147.25,147.14,26.06]
[1726839830173,26.06,147.25,147.14,29.4578]
[1726839830875,26.06,147.25,147.15,3.3975]
[1726839831073,1.3277,147.26,147.15,3.3975]
[1726839831271,1.3277,147.26,147.16,1.382]
[1726839831575,1.3277,147.26,147.17,3.33990929]